bitfinex-derivatives/quotes_SOLF0:USTF0_20250117
["timestamp","ask_amount","ask_price","bid_price","bid_amount"]
[1737129780208,4.5829,218.15,218.01,21.27024394]
[1737129780710,1.4459,218.18,218.14,4.583]
[1737129780900,1.4459,218.18,218.01,21.27024394]
[1737129781410,21.27024394,218.16,217.98,4.5352]
[1737129781610,21.27024394,218.16,218.0,4.76]
[1737129782311,4.5834,218.12,218.03,4.5852]
[1737129782511,4.5834,218.12,218.0,4.76]
[1737129782512,21.27024394,218.12,217.98,7.7997]
[1737129782902,21.27024394,218.08,217.7,85.78]
[1737129783106,21.27024394,218.04,217.85,1.5682]
[1737129783306,21.27024394,218.04,217.91,4.5878]
[1737129783510,21.27024394,218.04,217.88,21.27024394]
[1737129783709,4.6179,218.07,217.88,21.27024394]
[1737129783904,4.5847,218.06,218.0,4.5859]
[1737129784108,4.5847,218.06,217.88,21.27024394]
[1737129784613,4.5833,218.13,217.92,21.27024394]
[1737129784814,21.27024394,218.13,217.96,21.27024394]
[1737129785009,21.27024394,218.13,218.01,4.5856]
[1737129785218,21.27024394,218.13,217.97,9.4041]
[1737129785716,25.85454394,218.08,217.97,7.8897]
[1737129786514,21.27024394,218.12,217.97,7.8897]
[1737129786717,22.74174394,218.16,217.97,29.15994394]
[1737129786912,22.74174394,218.16,217.98,1.5144]
[1737129787713,4.5831,218.14,218.09,4.584]
[1737129788521,4.5831,218.14,218.1,4.5838]
[1737129788719,27.32444394,218.16,217.98,1.5144]
[1737129789219,22.74174394,218.16,217.98,1.5144]
[1737129789814,4.5831,218.14,217.98,1.5144]
[1737129790212,22.74174394,218.16,217.98,1.5144]
[1737129790620,21.27024394,218.12,217.99,4.8]
[1737129791121,4.5845,218.08,217.98,4.8]
[1737129791326,21.27024394,218.12,217.98,4.8]
[1737129792019,4.5828,218.15,218.1,4.5837]
[1737129792219,22.74174394,218.16,217.99,21.27024394]
[1737129792823,1.4715,218.16,217.99,21.27024394]
[1737129793222,1.4715,218.16,218.03,21.27024394]
[1737129794118,1.4715,218.16,218.14,4.5829]
[1737129794518,21.27024394,218.2,218.03,21.27024394]
[1737129794722,21.27024394,218.2,218.04,1.4312]
[1737129794922,25.85084394,218.24,218.04,1.4312]
[1737129795323,4.5818,218.2,218.1,4.5839]
[1737129795527,25.85084394,218.24,218.08,4.8]
[1737129795927,4.5806,218.24,218.09,2.9736]
[1737129797225,9.1615,218.24,218.09,2.9736]
[1737129797932,9.1615,218.24,218.19,4.5818]
[1737129798732,9.1615,218.24,218.09,2.9736]
[1737129798733,4.5806,218.24,218.09,2.9736]
[1737129799034,25.85084394,218.24,218.1,4.8]
[1737129799631,25.85084394,218.24,218.09,2.9736]
[1737129799833,21.27024394,218.2,218.09,7.7736]
[1737129800131,21.27024394,218.2,218.09,4.8]
[1737129800329,4.5826,218.17,218.09,4.8]
[1737129800529,21.27024394,218.2,218.04,2.8695]
[1737129800530,21.27024394,218.2,218.06,4.8]
[1737129800932,4.5824,218.18,218.12,4.5832]
[1737129801127,21.27024394,218.2,218.12,4.5832]
[1737129802023,4.5826,218.17,218.12,4.5832]
[1737129802727,4.5826,218.17,218.06,4.8]
[1737129802937,4.5826,218.17,218.13,4.5832]
[1737129803138,21.27024394,218.2,218.06,4.8]
[1737129803430,4.5806,218.24,218.07,21.27024394]
[1737129803630,4.5806,218.24,218.07,22.81424394]
[1737129804131,21.27024394,218.22,218.07,22.81424394]
[1737129804334,4.5823,218.18,218.14,4.5828]
[1737129804528,21.27024394,218.22,218.07,1.544]
[1737129805031,4.582,218.19,218.07,1.544]
[1737129805235,4.582,218.19,218.14,4.5828]
[1737129806434,4.582,218.19,218.07,1.544]
[1737129806632,4.582,218.19,218.15,4.5827]
[1737129806828,21.27024394,218.22,218.07,1.544]
[1737129807232,21.27024394,218.22,218.13,4.5832]
[1737129807424,4.5819,218.2,218.13,4.5832]
[1737129807728,21.27024394,218.22,218.07,1.544]
[1737129808035,4.5823,218.18,218.07,1.544]
[1737129808234,21.27024394,218.22,218.13,4.5831]
[1737129809433,4.5824,218.17,218.13,4.5831]
[1737129810033,4.5826,218.16,218.13,4.5831]
[1737129810434,21.27024394,218.22,218.13,4.5831]
[1737129811334,4.5833,218.13,218.04,2.8695]
[1737129811632,4.5833,218.13,218.04,6.2383]
[1737129811832,4.5833,218.13,218.09,4.5839]
[1737129812639,4.5833,218.13,218.1,4.5838]
[1737129814743,4.5831,218.14,218.1,4.5838]
[1737129815039,13.32122794,218.15,218.1,4.5838]
[1737129815437,4.5832,218.14,218.1,4.5838]
[1737129816245,4.5833,218.13,218.1,4.5838]
[1737129816440,4.5833,218.13,218.09,4.584]
[1737129817042,4.5833,218.13,218.09,4.5839]
[1737129817439,4.583,218.14,218.03,4.78]
[1737129817743,4.583,218.14,218.11,4.5836]
[1737129818545,17.90422794,218.15,218.11,4.5835]
[1737129819144,4.5832,218.13,218.1,4.5838]
[1737129819441,13.32122794,218.15,218.03,4.78]
[1737129819844,4.583,218.14,218.03,4.78]
[1737129820345,17.90402794,218.15,218.03,4.78]
[1737129820540,17.90402794,218.15,218.03,6.3093]
[1737129820844,4.5831,218.14,218.11,4.5835]
[1737129821338,13.32122794,218.15,218.03,6.3093]
[1737129821741,13.32122794,218.12,217.96,22.49482794]
[1737129821939,13.32122794,218.09,217.96,13.32122794]
[1737129822143,13.32122794,218.09,217.97,4.78]
[1737129822343,13.32122794,218.09,217.96,13.32122794]
[1737129822644,13.32122794,218.09,217.97,4.78]
[1737129822942,4.5849,218.05,217.97,4.78]
[1737129823144,13.32122794,218.06,217.94,3.1178]
[1737129823344,13.32122794,218.06,217.95,4.78]
[1737129823538,13.32122794,218.06,217.94,7.8978]
[1737129823736,13.32122794,218.06,217.96,4.5866]
[1737129823938,13.32122794,218.03,217.91,90.6]
[1737129824146,13.32122794,218.03,217.91,4.78]
[1737129824337,4.5868,217.96,217.91,4.78]
[1737129824543,13.32122794,218.0,217.91,4.78]
[1737129825046,4.5864,217.99,217.93,4.5873]
[1737129825447,13.32122794,218.0,217.93,4.5873]
[1737129825745,13.32122794,218.0,217.88,4.78]
[1737129826647,13.32122794,218.0,217.92,4.5876]
[1737129826847,13.32122794,218.0,217.88,4.78]
[1737129827043,17.90722794,218.0,217.88,4.78]
[1737129827251,3.0274,218.02,217.88,4.78]
[1737129827441,3.0274,218.02,217.9,13.32122794]
[1737129827642,1.4501,218.02,217.93,13.32122794]
[1737129827845,13.32122794,218.07,217.93,13.32122794]
[1737129828042,13.32122794,218.07,217.96,13.32122794]
[1737129828248,13.32122794,218.07,217.94,3.1351]
[1737129828647,17.90632794,218.04,217.94,3.1351]
[1737129829047,13.32122794,218.04,217.94,3.1351]
[1737129829251,13.32122794,218.04,217.99,4.5861]
[1737129829957,4.5854,218.03,217.94,3.1351]
[1737129830348,13.32122794,218.04,217.94,3.1351]
[1737129830548,13.32122794,218.04,217.99,4.586]
[1737129830746,13.32122794,218.04,217.94,3.1351]
[1737129831351,13.32122794,218.01,217.87,13.32122794]
[1737129831551,13.32122794,218.01,217.89,4.78]
[1737129831751,4.586,218.0,217.96,4.5867]
[1737129832151,13.32122794,218.01,217.96,4.5867]
[1737129832648,17.90702794,218.01,217.89,4.78]
[1737129833454,17.90702794,218.01,217.97,4.5866]
[1737129833750,17.90702794,218.01,217.89,4.78]
[1737129834053,17.90702794,218.01,217.96,4.5866]
[1737129834552,13.32122794,218.04,217.9,13.32122794]
[1737129834754,13.32122794,218.07,217.93,13.32122794]
[1737129835150,13.32122794,218.1,217.96,13.32122794]
[1737129835550,13.32122794,218.1,217.97,2.9988]
[1737129835751,17.90512794,218.1,217.99,13.32122794]
[1737129835952,17.90512794,218.1,217.98,4.78]
[1737129836459,13.32122794,218.1,217.98,4.78]
[1737129836646,4.5839,218.1,217.98,4.78]
[1737129837455,1.5476,218.12,218.0,13.32122794]
[1737129837657,13.32122794,218.16,218.04,13.32122794]
[1737129838259,13.32122794,218.16,218.11,4.5834]
[1737129838458,13.32122794,218.16,218.04,13.32122794]
[1737129838654,4.4949,218.18,218.04,13.32122794]
[1737129838957,4.4949,218.18,218.07,13.32122794]
[1737129839157,4.4949,218.18,218.07,18.10122794]
[1737129839958,4.4949,218.18,218.13,4.583]
[1737129840649,4.4949,218.18,218.07,18.10122794]
[1737129841052,13.32122794,218.22,218.11,4.5835]
[1737129841253,17.77432794,218.25,218.1,13.32122794]
[1737129841454,22.35522794,218.25,218.1,13.32122794]
[1737129841649,4.4531,218.25,218.16,13.32122794]
[1737129841853,188.02583612,218.29,218.16,18.10122794]
[1737129842258,188.02583612,218.29,218.19,4.5818]
[1737129842460,188.02583612,218.29,218.19,13.32122794]
[1737129842757,13.32122794,218.31,218.22,4.5812]
[1737129842956,4.4531,218.32,218.19,13.32122794]
[1737129843358,47.16887059,218.34,218.25,13.32122794]
[1737129843560,188.02583612,218.41,218.26,4.78]
[1737129843757,188.02583612,218.41,218.28,13.32122794]
[1737129843758,201.34706406,218.41,218.28,13.32122794]
[1737129843964,201.34706406,218.41,218.35,4.5785]
[1737129844167,13.32122794,218.41,218.28,13.32122794]
[1737129844358,13.32122794,218.41,218.26,4.78]
[1737129844553,4.5778,218.39,218.32,4.5792]
[1737129844753,13.32122794,218.41,218.32,4.5792]
[1737129845068,13.32122794,218.38,218.26,4.78]
[1737129845361,17.89922794,218.38,218.31,4.5794]
[1737129845561,21.26590753,218.42,218.26,4.78]
[1737129845963,4.6315,218.44,218.28,21.26590753]
[1737129846268,4.6315,218.44,218.29,1.4546]
[1737129846764,4.6315,218.44,218.3,1.4766]
[1737129846959,4.577,218.43,218.36,4.5783]
[1737129847155,4.6315,218.44,218.3,1.4766]
[1737129848164,4.6315,218.44,218.35,4.5786]
[1737129848165,4.5774,218.41,218.35,4.5786]
[1737129848361,4.6315,218.44,218.3,1.4766]
[1737129848762,4.5771,218.43,218.37,4.5781]
[1737129849461,4.5771,218.43,218.38,4.578]
[1737129849657,9.2082,218.44,218.3,1.4766]
[1737129849861,4.6315,218.44,218.3,1.4766]
[1737129850060,4.6315,218.44,218.39,4.5777]
[1737129850667,4.6315,218.44,218.37,4.578]
[1737129850961,4.6315,218.44,218.3,1.4766]
[1737129851370,9.2082,218.44,218.39,4.5777]
[1737129851672,6.1207,218.44,218.39,4.5777]
[1737129851966,4.5767,218.44,218.39,4.5777]
[1737129852467,5.87511893,218.49,218.35,4.78]
[1737129852468,4.5761,218.47,218.42,4.577]
[1737129853266,1.5548,218.49,218.42,4.577]
[1737129853462,4.5761,218.47,218.42,4.577]
[1737129853766,1.5548,218.49,218.36,21.26590753]
[1737129853967,1.5078,218.51,218.36,22.78020753]
[1737129854166,46.34732983,218.52,218.36,22.78020753]
[1737129854666,46.34732983,218.52,218.37,4.76]
[1737129854867,21.26590753,218.5,218.37,4.76]
[1737129855269,4.5766,218.45,218.37,4.76]
[1737129856271,21.26590753,218.5,218.37,4.76]
[1737129856471,4.5763,218.47,218.37,4.76]
[1737129856670,46.34732983,218.52,218.44,4.5767]
[1737129856872,4.5761,218.47,218.37,4.76]
[1737129857266,4.5761,218.47,218.42,4.577]
[1737129857665,46.34732983,218.52,218.37,4.76]
[1737129857871,21.26590753,218.49,218.4,4.5774]
[1737129858267,21.26590753,218.49,218.36,1.5143]
[1737129858268,4.5767,218.44,218.36,4.76]
[1737129858572,4.5767,218.44,218.39,4.5776]
[1737129859272,21.26590753,218.49,218.39,4.5776]
[1737129859872,21.26590753,218.49,218.32,21.26590753]
[1737129859873,21.26590753,218.49,218.3,3.054]
[1737129860075,21.26590753,218.45,218.31,4.76]
[1737129860873,4.5775,218.41,218.31,4.76]
[1737129861270,21.26590753,218.45,218.31,4.76]
[1737129861972,4.5774,218.41,218.35,4.5785]
[1737129862177,21.26590753,218.45,218.35,4.5785]
[1737129863177,4.5778,218.39,218.35,4.5785]
[1737129863574,4.4389,218.44,218.33,4.5788]
[1737129863973,4.5782,218.37,218.33,4.5788]
[1737129864176,21.26590753,218.41,218.32,4.5792]
[1737129864580,4.5783,218.37,218.32,4.5792]
[1737129864768,4.4389,218.44,218.24,21.26590753]
[1737129864974,21.26590753,218.49,218.43,4.5769]
[1737129865169,4.4448,218.51,218.33,3.025]
[1737129865773,4.5767,218.45,218.4,4.5774]
[1737129866269,4.5761,218.48,218.35,13.28040959]
[1737129866470,4.4448,218.51,218.38,13.28040959]
[1737129867273,4.4448,218.51,218.33,3.025]
[1737129867274,4.5759,218.49,218.44,4.5767]
[1737129867879,4.5759,218.48,218.44,4.5767]
[1737129868080,4.4448,218.51,218.45,4.5763]
[1737129868381,46.34732983,218.52,218.41,13.28040959]
[1737129868783,13.28040959,218.49,218.39,4.76]
[1737129869781,4.5767,218.44,218.39,9.3376]
[1737129869982,4.5767,218.44,218.39,4.76]
[1737129870177,13.28040959,218.46,218.39,4.76]
[1737129870783,4.5767,218.45,218.4,4.5775]
[1737129871677,13.28040959,218.46,218.35,4.76]
[1737129871988,13.28040959,218.46,218.34,4.76]
[1737129872383,4.5775,218.41,218.35,4.5784]
[1737129872582,4.5775,218.41,218.34,4.76]
[1737129872785,13.28040959,218.43,218.34,4.76]
[1737129873589,13.28040959,218.43,218.31,6.2849]
[1737129873992,4.5778,218.4,218.35,4.5784]
[1737129874393,4.5778,218.4,218.31,1.5249]
[1737129874692,4.5778,218.4,218.31,6.2849]
[1737129876194,4.5778,218.4,218.36,4.5783]
[1737129876895,4.5773,218.42,218.38,4.5778]
[1737129878084,201.30624571,218.46,218.38,4.5778]
[1737129878294,4.5774,218.41,218.38,4.5778]
[1737129880392,4.5772,218.42,218.38,4.5778]
[1737129881592,4.5767,218.45,218.36,4.5784]
[1737129881897,188.02583612,218.46,218.38,13.28040959]
[1737129882298,188.02583612,218.44,218.43,4.5768]
[1737129882902,4.5762,218.47,218.43,4.5768]
[1737129884900,188.02583612,218.48,218.33,14.75010959]
[1737129885201,13.28040959,218.46,218.33,14.75010959]
[1737129885402,13.28040959,218.46,218.39,4.5777]
[1737129885902,13.28040959,218.43,218.33,1.4697]
[1737129886801,4.5776,218.4,218.35,4.5784]
[1737129887103,4.5776,218.4,218.33,1.4697]
[1737129887399,4.5776,218.4,218.35,4.5786]
[1737129887601,4.5776,218.4,218.32,4.74]
[1737129887900,4.5778,218.39,218.35,4.5785]
[1737129888898,4.5778,218.39,218.36,4.5784]
[1737129889896,4.5781,218.38,218.34,4.5787]
[1737129890402,4.5778,218.4,218.36,4.5784]
[1737129890604,13.16130073,218.42,218.31,4.74]
[1737129890999,4.5779,218.39,218.35,4.5784]
[1737129891900,4.5783,218.37,218.34,4.5788]
[1737129892400,13.16130073,218.42,218.31,4.74]
[1737129892606,194.81694284,218.42,218.33,13.28040959]
[1737129892900,188.02583612,218.42,218.33,13.28040959]
[1737129893103,4.5776,218.4,218.33,13.28040959]
[1737129893897,4.5776,218.4,218.36,4.5782]
[1737129894202,4.5776,218.4,218.33,13.28040959]
[1737129895199,4.5776,218.4,218.37,4.5782]
[1737129896001,4.5774,218.41,218.38,4.5778]
[1737129896404,188.02583612,218.42,218.33,13.28040959]
[1737129896604,4.5776,218.4,218.33,13.28040959]
[1737129897305,188.02583612,218.42,218.38,4.578]
[1737129897506,4.5774,218.41,218.38,4.578]
[1737129897699,188.02583612,218.42,218.33,13.28040959]
[1737129897898,188.02583612,218.42,218.4,4.5775]
[1737129898203,188.02583612,218.42,218.33,13.28040959]
[1737129898601,188.02583612,218.42,218.41,4.5773]
[1737129899104,4.5768,218.44,218.41,4.5773]
[1737129899899,4.5768,218.44,218.33,13.28040959]
[1737129899900,27.97899883,218.45,218.33,13.28040959]
[1737129900107,21.60417351,218.45,218.32,4.74]
[1737129900307,13.28040959,218.42,218.31,4.72]
[1737129900505,13.28040959,218.42,218.34,4.5787]
[1737129900703,20.08457351,218.42,218.31,4.72]
[1737129900901,20.08457351,218.42,218.33,13.28040959]
[1737129900902,6.80416392,218.42,218.33,13.28040959]
[1737129901307,1.5196,218.45,218.33,13.28040959]
[1737129902011,6.80416392,218.46,218.36,13.28040959]
[1737129902302,6.80416392,218.46,218.45,4.5765]
[1737129902506,188.02583612,218.47,218.45,4.5765]
[1737129903098,4.5757,218.49,218.45,4.5765]
[1737129903304,194.14033612,218.5,218.46,4.5762]
[1737129903506,6.80142493,218.49,218.46,4.5762]
[1737129904307,6.80142493,218.49,218.48,4.5759]
[1737129904904,188.02583612,218.5,218.49,4.5757]
[1737129905309,188.02583612,218.54,218.49,4.5757]
[1737129905504,192.60063612,218.54,218.49,4.5757]
[1737129905712,188.02583612,218.54,218.45,13.28040959]
[1737129906108,188.02583612,218.54,218.51,4.5752]
[1737129906408,33.02672773,218.52,218.27,13.28040959]
[1737129906612,13.28040959,218.4,218.27,13.28040959]
[1737129907013,1.4746,218.45,218.34,13.28040959]
[1737129907308,12.84386031,218.45,218.39,4.5778]
[1737129907612,6.0511,218.45,218.39,4.5778]
[1737129908203,7.85536119,218.5,218.33,2.8906]
[1737129908409,6.79292567,218.5,218.35,1.4811]
[1737129908916,6.79292567,218.51,218.35,1.4811]
[1737129909111,4.5757,218.49,218.35,1.4811]
[1737129909413,8.26752567,218.52,218.35,1.4811]
[1737129909615,14.63286509,218.52,218.35,1.4811]
[1737129909912,7.85744676,218.51,218.35,6.3011]
[1737129910113,14.22278618,218.51,218.35,6.3011]
[1737129910915,6.79292567,218.5,218.35,6.3011]
[1737129911310,4.5757,218.49,218.44,4.5767]
[1737129911713,4.5757,218.49,218.43,4.5768]
[1737129912113,4.5759,218.48,218.43,4.5768]
[1737129912315,21.25015951,218.49,218.35,1.4811]
[1737129912612,21.25015951,218.49,218.35,6.3011]
[1737129912814,21.25015951,218.49,218.4,4.5775]
[1737129913011,4.5761,218.48,218.35,6.3011]
[1737129913309,1.4746,218.52,218.36,21.25015951]
[1737129913509,1.4746,218.52,218.44,4.5766]
[1737129913815,4.5755,218.5,218.36,21.25015951]
[1737129914515,4.5755,218.5,218.44,4.5767]
[1737129915010,1.4746,218.52,218.44,4.5767]
[1737129915011,4.5757,218.49,218.44,4.5767]
[1737129915614,4.5757,218.49,218.45,4.5764]
[1737129915813,4.5757,218.49,218.36,21.25015951]
[1737129916015,4.5761,218.47,218.36,21.25015951]
[1737129916312,4.5761,218.47,218.39,4.5777]
[1737129916511,4.5761,218.47,218.36,21.25015951]
[1737129916911,4.5761,218.47,218.39,4.5777]
[1737129917111,4.5761,218.47,218.36,21.25015951]
[1737129917316,1.4746,218.52,218.36,21.25015951]
[1737129917613,1.4746,218.52,218.46,4.5763]
[1737129918011,4.5751,218.52,218.48,4.5758]
[1737129919218,22.83305951,218.53,218.44,4.8]
[1737129919813,4.5756,218.5,218.45,4.5765]
[1737129920016,22.83305951,218.53,218.45,4.5765]
[1737129920212,4.5753,218.51,218.45,4.5765]
[1737129920417,22.83305951,218.53,218.45,4.5765]
[1737129920618,22.83305951,218.53,218.44,4.8]
[1737129920818,4.5752,218.52,218.48,4.5757]
[1737129921420,1.5829,218.53,218.44,4.8]
[1737129921615,4.5753,218.51,218.47,4.5761]
[1737129921821,22.83305951,218.53,218.44,4.8]
[1737129922019,4.5762,218.47,218.42,4.577]
[1737129922217,22.83305951,218.53,218.41,4.8]
[1737129922519,4.5759,218.49,218.45,4.5764]
[1737129922721,22.83305951,218.53,218.41,4.8]
[1737129923511,4.5757,218.49,218.45,4.5763]
[1737129924419,4.5757,218.49,218.41,4.8]
[1737129924420,4.5764,218.46,218.43,4.5769]
[1737129924812,22.83305951,218.53,218.43,4.5769]
[1737129925017,4.5761,218.48,218.44,4.5767]
[1737129925217,22.83305951,218.53,218.38,4.8]
[1737129925615,4.576,218.48,218.44,4.5766]
[1737129925811,22.83305951,218.53,218.38,4.8]
[1737129927123,188.02583612,218.54,218.4,21.25015951]
[1737129927321,188.02583612,218.56,218.4,21.25015951]
[1737129927512,188.02583612,218.56,218.48,4.5757]
[1737129927513,4.5751,218.52,218.48,4.5757]
[1737129927717,188.02583612,218.56,218.48,4.5757]
[1737129928822,4.5752,218.52,218.48,4.5757]
[1737129929419,188.02583612,218.56,218.42,1.5474]
[1737129930020,188.02583612,218.56,218.5,4.5753]
[1737129930021,4.5748,218.54,218.5,4.5753]
[1737129931017,188.02583612,218.56,218.42,1.5474]
[1737129931424,188.02583612,218.56,218.42,6.3474]
[1737129931624,21.25015951,218.53,218.44,4.5765]
[1737129932225,4.5759,218.48,218.44,4.5765]
[1737129932425,21.25015951,218.53,218.42,10.9245]
[1737129932621,21.25015951,218.53,218.42,6.3474]
[1737129933128,21.25015951,218.53,218.43,4.5768]
[1737129933427,21.25015951,218.53,218.42,6.3474]
[1737129933929,188.02583612,218.56,218.42,6.3474]
[1737129934428,4.5753,218.51,218.47,4.576]
[1737129936019,4.5755,218.5,218.46,4.5763]
[1737129937724,201.29920358,218.55,218.42,6.3474]
[1737129937922,13.27336746,218.52,218.42,6.3474]
[1737129938126,4.5759,218.49,218.42,6.3474]
[1737129938531,13.27336746,218.52,218.42,6.3474]
[1737129938728,13.27336746,218.49,218.41,4.78]
[1737129939033,13.27336746,218.42,218.34,1.4372]
[1737129939531,4.5776,218.41,218.34,1.4372]
[1737129939732,13.27336746,218.42,218.34,1.4372]
[1737129939933,13.27336746,218.42,218.37,4.578]
[1737129940330,13.27336746,218.42,218.31,90.48]
[1737129940531,13.27336746,218.39,218.34,4.5786]
[1737129940824,13.27336746,218.39,218.31,4.8]
[1737129941229,13.27336746,218.39,218.34,4.5787]
[1737129941425,4.5773,218.42,218.31,4.8]
[1737129941426,17.85066746,218.42,218.31,4.8]
[1737129941633,4.5773,218.42,218.26,22.82735817]
[1737129941825,21.26235817,218.44,218.34,4.5787]
[1737129942027,21.26235817,218.4,218.26,1.565]
[1737129942336,1.5307,218.39,218.3,4.5796]
[1737129942526,1.5307,218.39,218.26,6.365]
[1737129942935,1.5307,218.39,218.32,4.5792]
[1737129943140,1.5307,218.39,218.27,4.8]
[1737129945343,4.5781,218.38,218.27,4.8]
[1737129945543,6.0322,218.38,218.27,4.8]
[1737129945743,1.4541,218.38,218.33,4.5789]
[1737129949146,1.4541,218.38,218.27,4.78]
[1737129949352,6.0321,218.38,218.34,4.5788]
[1737129949553,1.4541,218.38,218.26,26.04235817]
[1737129949754,1.4541,218.38,218.32,4.5792]
[1737129950652,4.5782,218.37,218.33,4.579]
[1737129950953,1.4541,218.38,218.26,21.26235817]
[1737129952850,210.79269429,218.45,218.26,21.26235817]
[1737129953144,1.5266,218.44,218.3,21.26235817]
[1737129953547,188.02583612,218.49,218.34,21.26235817]
[1737129953753,188.02583612,218.49,218.38,21.26235817]
[1737129954245,188.02583612,218.49,218.48,4.5759]
[1737129954453,3.0653,218.52,218.38,21.26235817]
[1737129954646,3.0653,218.52,218.42,4.5771]
[1737129954850,3.0653,218.52,218.38,21.26235817]
[1737129955353,3.0653,218.52,218.36,1.5175]
[1737129955553,4.5753,218.51,218.37,21.26235817]
[1737129956448,3.0653,218.52,218.47,4.5761]
[1737129956651,3.0653,218.52,218.41,21.26235817]
[1737129958252,1.4977,218.56,218.41,21.26235817]
[1737129958457,4.5743,218.56,218.41,21.26235817]
[1737129959756,4.5743,218.56,218.51,4.5752]
[1737129960156,4.5742,218.57,218.48,4.5758]
[1737129960460,191.03393612,218.58,218.45,21.26235817]
[1737129960661,191.03393612,218.58,218.45,24.41485817]
[1737129960859,4.5743,218.56,218.51,4.5752]
[1737129961161,3.0081,218.58,218.45,24.41485817]
[1737129961859,3.0081,218.58,218.53,4.5747]
[1737129962662,3.0081,218.58,218.54,4.5746]
[1737129962959,51.20257264,218.6,218.49,21.26235817]
[1737129962960,49.64937264,218.6,218.49,21.26235817]
[1737129963356,188.02583612,218.62,218.61,4.5732]
[1737129964257,173.24813612,218.62,218.61,4.5732]
[1737129964465,17.79242733,218.74,218.6,13.25832733]
[1737129964466,173.24813612,218.71,218.65,4.5723]
[1737129964967,173.24813612,218.71,218.63,13.25832733]
[1737129965258,1.4528,218.74,218.63,13.25832733]
[1737129965456,188.02583612,218.79,218.63,21.19180912]
[1737129965660,0.7337331,218.78,218.63,21.19180912]
[1737129965864,7.53245368,218.78,218.63,21.19180912]
[1737129966059,4.5704,218.75,218.69,4.5715]
[1737129966768,4.5709,218.72,218.66,4.572]
[1737129966960,1.4944,218.8,218.62,4.78]
[1737129967153,0.7340298,218.79,218.62,4.78]
[1737129967359,4.5711,218.71,218.65,4.5723]
[1737129968358,4.5711,218.71,218.66,4.572]
[1737129968565,4.5711,218.71,218.62,4.78]
[1737129968961,21.19180912,218.77,218.62,4.78]
[1737129969162,4.5709,218.72,218.62,4.78]
[1737129969360,1.4944,218.8,218.62,4.78]
[1737129969563,4.5702,218.75,218.67,4.5719]
[1737129969862,4.5702,218.75,218.62,4.78]
[1737129970063,1.4944,218.8,218.62,4.78]
[1737129970364,0.73520967,218.79,218.62,4.78]
[1737129970565,4.5705,218.74,218.62,4.78]
[1737129970763,4.5705,218.74,218.63,1.4854]
[1737129971167,4.5705,218.74,218.64,1.5253]
[1737129971364,4.5705,218.74,218.69,4.5715]
[1737129972067,1.4465,218.81,218.69,21.19180912]
[1737129972564,4.5696,218.78,218.73,4.5705]
[1737129972764,4.5696,218.78,218.69,21.19180912]
[1737129972964,1.4465,218.81,218.69,21.19180912]
[1737129973167,4.5693,218.8,218.69,21.19180912]
[1737129973464,1.5292,218.84,218.69,21.19180912]
[1737129973669,4.5691,218.81,218.75,4.57]
[1737129974066,1.5292,218.84,218.75,4.57]
[1737129975468,1.5292,218.84,218.69,21.19180912]
[1737129975871,1.5292,218.84,218.71,4.5709]
[1737129976176,21.19180912,218.83,218.68,4.76]
[1737129976370,21.19180912,218.83,218.67,4.76]
[1737129976570,4.5696,218.79,218.73,4.5705]
[1737129976772,21.19180912,218.83,218.67,4.76]
[1737129977673,4.5698,218.77,218.67,4.76]
[1737129977873,21.19180912,218.83,218.67,4.76]
[1737129978168,21.19180912,218.79,218.67,4.76]
[1737129979075,4.5708,218.73,218.69,4.5713]
[1737129979870,21.19180912,218.79,218.65,1.5444]
[1737129980170,21.19180912,218.79,218.64,1.5253]
[1737129980171,21.19180912,218.75,218.64,1.5253]
[1737129980371,4.5714,218.7,218.65,4.5721]
[1737129980769,4.5714,218.7,218.64,1.5253]
[1737129981968,4.5715,218.69,218.64,6.0976]